Cogmind - Beta 12 @@@ ROGUE MODE // 2023.05.15 @ 10:54:10 Player: dhtilly Result: Destroyed by D-53 Grenadier with Mini Grenade Launcher Performance ------------- Evolutions (0) 0 Regions Visited (4) 800 Robots Destroyed (14) 70 Value Destroyed (298) 298 Prototype IDs (23) 460 Alien Tech Used (0) 0 Bonus (112) 112 TOTAL SCORE: 1740 Bonus ------- Follower Combat Kills 25 Aligned with FarCom 300 Friendly Fire -213 Cogmind --------- Core Integrity 0/250 Matter 203/300 Energy 263/300 System Corruption 0% Temperature Warm (162) Movement Treading (145) Location -9/Mines Parts ------- > --- POWER (1) -------- (None) > --- PROPULSION (2) --- Advanced Treads Advanced Treads > --- UTILITY (2) ------ High-capacity Storage Unit Compact Battery > --- WEAPON (2) ------- Light Assault Rifle Light Assault Rifle > --- INVENTORY (20) --- Advanced Treads Advanced Treads High-capacity Matter Pod (200) Experimental Sensor Array Medium Laser Small Laser AWS/Thermal Guided Plasma Cannon Improved Grenade Launcher Makeshift Hammer Peak State ------------ > --- POWER ------------ Light Ion Engine > --- PROPULSION ------- Advanced Treads Advanced Treads > --- UTILITY ---------- High-capacity Storage Unit Compact Battery > --- WEAPON ----------- Guided Plasma Cannon Light Assault Rifle > --- INVENTORY -------- Advanced Treads Advanced Treads High-capacity Matter Pod Experimental Sensor Array Medium Laser Small Laser AWS/Thermal Light Assault Rifle Improved Grenade Launcher Makeshift Hammer [Rating: 24] Favorites ----------- Power Light Ion Engine Engine Light Ion Engine Propulsion Light Treads Treads Light Treads Utility Heat Sink Device Heat Sink Storage Medium Storage Unit Weapon Light Assault Rifle Energy Gun Medium Laser Energy Cannon Guided Plasma Cannon Ballistic Gun Light Assault Rifle Launcher Grenade Launcher Build | -11 -10 -10 -10 -9 ------- Run | Jun Mat Min Exi Min Slots Evolved . | . . . . . Power . | . . . . . Propulsion . | . . . . . Utility . | . . . . . Weapon . | . . . . . Parts Attached 20 | 6 2 5 1 6 Power 2 | 1 . 1 . . Engine 2 | 1 . 1 . . Core . | . . . . . Reactor . | . . . . . Propulsion 4 | 2 . . . 2 Treads 4 | 2 . . . 2 Leg . | . . . . . Wheel . | . . . . . Hover . | . . . . . Flight . | . . . . . Utility 5 | 1 2 . 1 1 Device 1 | . 1 . . . Storage 4 | 1 1 . 1 1 Processor . | . . . . . Hackware . | . . . . . Protection . | . . . . . Artifact . | . . . . . Weapon 9 | 2 . 4 . 3 Energy Gun 3 | 1 . 2 . . Energy Cannon 1 | . . . . 1 Ballistic Gun 2 | 1 . . . 1 Ballistic Cannon . | . . . . . Launcher 3 | . . 2 . 1 Special Weapon . | . . . . . Impact Weapon . | . . . . . Slashing Weapon . | . . . . . Piercing Weapon . | . . . . . Special Melee Weapon . | . . . . . Unidentified Prototypes . | . . . . . Parts Lost 5 | . . 1 . 4 Power 2 | . . 1 . 1 Propulsion 2 | . . . . 2 Utility 1 | . . . . 1 Weapon . | . . . . . Highest Loss Streak 4 | . . 1 . 4 To Critical Strikes . | . . . . . Average Slot Usage (%) 96 | . 96 92 100 99 Engine 11 | . 14 6 14 13 Treads 28 | . 28 28 28 28 Device 13 | . 10 14 14 13 Storage 14 | . 14 14 14 14 Energy Gun 13 | . 14 13 14 12 Ballistic Gun 14 | . 14 14 14 14 Naked Turns . | . . . . . Heaviest Build 51 | 13 19 20 47 51 Greatest Support 44 | 40 40 40 40 44 Greatest Overweight (x) 1 | . . . 1 1 Average Overweight (x) . | . . . . . Largest Inventory Capacity 20 | 8 10 10 20 20 Average Capacity 12 | 7 8 10 15 20 Most Carried 14 | 4 6 10 13 14 Average Carried 8 | 2 4 7 10 13 Final Capacity 20 | 8 10 10 20 20 Final Carried 13 | 4 6 10 13 11 Class Distribution -------------------- 100% | Mutant Dominant Class ---------------- Mutant | -10/Materials Mutant | -10/Mines Mutant | -10/Exiles Mutant | -9/Mines Resources | -11 -10 -10 -10 -9 ----------- Run | Jun Mat Min Exi Min Matter Collected 630 | 216 275 129 . 10 Remotely . | . . . . . Salvage Created 457 | . 127 203 . 127 Parts 23 | . 6 16 . 1 Haulers Intercepted 1 | . 1 . . . Recyclers Shooed . | . . . . . Parts Field Recycled . | . . . . . Retrieved Matter . | . . . . . Parts Self-Destructed . | . . . . . Prevented . | . . . . . Kills | -11 -10 -10 -10 -9 ------- Run | Jun Mat Min Exi Min Combat Hostiles Destroyed 30 | . 2 10 . 18 Guns 8 | . 2 6 . . Cannons 1 | . . . . 1 AOE 21 | . . 4 . 17 Classes Destroyed 5 | . 2 2 . 1 Hauler 1 | . 1 . . . Swarmer 6 | . . 6 . . Grunt 5 | . 2 3 . . Demolisher 1 | . . . . 1 Assembled 18 | . . 1 . 17 Thug 1 | . . . . 1 Best Kill Streak 18 | . 2 3 . 18 Combat Bots Only 18 | . 2 3 . 18 Max Kills in Single Turn 10 | . 1 3 . 10 Gunslinging . | . . . . . Exploded 9 | . . 3 . 9 Melee . | . . . . . Uniques/NPCs Destroyed . | . . . . . Combat | -11 -10 -10 -10 -9 -------- Run | Jun Mat Min Exi Min Damage Taken 1062 | . 63 329 . 670 Core 259 | . 10 58 . 191 Absorbed by Shields . | . . . . . Core Remaining (%) 100 | 100 . . . . Volleys Fired 55 | . 11 30 . 14 Largest 2 | . 2 2 . 2 Hottest 120 | . 70 70 . 120 Shots Fired 91 | . 22 54 . 15 Gun 75 | . 22 48 . 5 Cannon 6 | . . . . 6 Launcher 10 | . . 6 . 4 Special . | . . . . . Kinetic 40 | . 11 24 . 5 Thermal 41 | . 11 24 . 6 Explosive 10 | . . 6 . 4 Electromagnetic . | . . . . . Robot Hit Streak 8 | . 8 5 . 8 Robot Miss Streak 3 | . 2 3 . 3 Penetration Max . | . . . . . Secondary Targets 1 | . 1 . . . Max Gunslinging Chain 1 | . 1 . . . Shots Hit Robots 55 | . 18 28 . 9 Core Hits 61 | . 7 20 . 34 Critical Kills . | . . . . . Critical Parts Destroyed . | . . . . . Critical Strikes 1 | . . 1 . . Burn 1 | . . 1 . . Melee Attacks . | . . . . . Impact . | . . . . . Slashing . | . . . . . Piercing . | . . . . . Sneak Attacks . | . . . . . Combat Hostiles . | . . . . . Follow-up Attacks . | . . . . . Damage Inflicted 2167 | . 184 532 . 1451 Guns 473 | . 184 283 . 6 Cannons 210 | . . . . 210 Explosions 1478 | . . 243 . 1235 Melee . | . . . . . Ramming 6 | . . 6 . . Kinetic 197 | . 71 120 . 6 Thermal 486 | . 113 163 . 210 Explosive 1478 | . . 243 . 1235 Electromagnetic . | . . . . . Impact . | . . . . . Slashing . | . . . . . Piercing . | . . . . . Highest Corruption . | . . . . . Average Corruption . | . . . . . Corruption Purged . | . . . . . Corruption Blocked . | . . . . . Overload Shots . | . . . . . Overflow Damage 33 | . . . . 33 Projectiles . | . . . . . Explosions 33 | . . . . 33 Melee . | . . . . . Knockbacks . | . . . . . Impact . | . . . . . Kinetic . | . . . . . Secondary . | . . . . . Self-Inflicted Damage 134 | . . 65 . 69 Shots 6 | . . 4 . 2 Rammed 1 | . . 1 . . Targets Rammed 1 | . . 1 . . Kicked . | . . . . . Crushed . | . . . . . Highest Temperature 360 | . 44 32 . 360 Average Temperature 74 | . 12 10 . 199 Received Heat Transfer 140 | . 36 84 . 20 Siege Activations . | . . . . . Robots Corrupted . | . . . . . Combat Hostiles . | . . . . . Parts Fried . | . . . . . Impact Corruptions . | . . . . . Robots Melted . | . . . . . Combat Hostiles . | . . . . . Parts Melted 3 | . 1 . . 2 Heat Transferred 1368 | . 333 555 . 480 Parts Sabotaged . | . . . . . Parts Stolen . | . . . . . Parts Stripped . | . . . . . Power Chain Reactions . | . . . . . Missiles Intercepted . | . . . . . Alert | -11 -10 -10 -10 -9 ------- Run | Jun Mat Min Exi Min Peak Influence 200 | . 52 200 . 20 Initial 5 | . . 5 . . Average 36 | . 15 61 . . Maximum Alert Level 1 | . . 1 . . Low Security (%) 94 | 100 100 90 . 100 Level 1 5 | . . 9 . . Level 2 . | . . . . . Level 3 . | . . . . . Level 4 . | . . . . . Level 5 . | . . . . . High Security . | . . . . . Max Security . | . . . . . Squads Dispatched 4 | . 2 2 . . Investigation 2 | . 1 1 . . Extermination . | . . . . . Reinforcement 1 | . 1 . . . Assault 1 | . . 1 . . Garrison . | . . . . . Intercept . | . . . . . Searches Triggered . | . . . . . Construction Impeded . | . . . . . Haulers Reinforced . | . . . . . Active Scanning Responses . | . . . . . Cargo Convoy Interrupts . | . . . . . Stealth | -11 -10 -10 -10 -9 --------- Run | Jun Mat Min Exi Min Distress Signals 2 | . 2 . . . Communications Jammed . | . . . . . Distress Signals . | . . . . . Times Spotted 40 | . 5 14 . 21 Peak Tracking Total 18 | . 2 3 . 18 Tactical Retreats 1 | . . 1 . . Traps | -11 -10 -10 -10 -9 ------- Run | Jun Mat Min Exi Min Traps Triggered 1 | . 1 . . . Indirectly . | . . . . . Trap Hack Attempts . | . . . . . Triggered . | . . . . . Disarmed . | . . . . . Reprogrammed . | . . . . . Reused . | . . . . . Traps Extracted . | . . . . . Installed . | . . . . . Triggered 1 | . . 1 . . Machines | -11 -10 -10 -10 -9 ---------- Run | Jun Mat Min Exi Min Machines Disabled . | . . . . . Max in Single Turn . | . . . . . Machines Repaired . | . . . . . Machines Sabotaged . | . . . . . Overloaded Fab Kills . | . . . . . Hacking | -11 -10 -10 -10 -9 --------- Run | Jun Mat Min Exi Min Machines Accessed 5 | . 2 1 2 . Terminals 2 | . 2 . . . Fabricators . | . . . . . Repair Stations . | . . . . . Recycling Units . | . . . . . Scanalyzers . | . . . . . Garrison Access . | . . . . . Total Hacks 9 | . 5 1 3 . Successful 5 | . 1 1 3 . Failed 4 | . 4 . . . Catastrophic . | . . . . . Database Lockouts . | . . . . . Manual 2 | . 1 . 1 . Terminals 5 | . 5 . . . Fabricators . | . . . . . Repair Stations . | . . . . . Recycling Units . | . . . . . Scanalyzers . | . . . . . Garrison Access . | . . . . . Terminal Hacks 4 | . . 1 3 . Record 2 | . . . 2 . Open Door 1 | . . 1 . . EX-Prototype ID Bank 1 | . . . 1 . Fabricator Hacks . | . . . . . Repair Station Hacks . | . . . . . Recycling Unit Hacks . | . . . . . Scanalyzer . | . . . . . Garrison Access Hacks . | . . . . . Unauthorized Hacks 1 | . 1 . . . Terminals 1 | . 1 . . . Botnet 1 | . 1 . . . Fabricators . | . . . . . Repair Stations . | . . . . . Recycling Units . | . . . . . Scanalyzers . | . . . . . Garrison Access . | . . . . . Data Cores Recovered . | . . . . . Used . | . . . . . Hacking Detections 2 | . 2 . . . Full Trace Events . | . . . . . Feedback Events . | . . . . . Feedback Blocked . | . . . . . Robot Schematics Acquired . | . . . . . Robots Built . | . . . . . Authchips . | . . . . . Time . | . . . . . Total Robot Build Rating . | . . . . . Part Schematics Acquired . | . . . . . Parts Built . | . . . . . Authchips . | . . . . . Time . | . . . . . Total Part Build Rating . | . . . . . Parts Repaired . | . . . . . Time . | . . . . . Parts Recycled . | . . . . . Recycled Matter . | . . . . . Retrieved Matter . | . . . . . Retrieved Components . | . . . . . Parts Scanalyzed . | . . . . . Part Schematics Acquired . | . . . . . Parts Damaged . | . . . . . Bothacking | -11 -10 -10 -10 -9 ------------ Run | Jun Mat Min Exi Min Used RIF Installer . | . . . . . Robots Hacked . | . . . . . Non-combat . | . . . . . Combat . | . . . . . Robot Hacks Applied . | . . . . . Relay Couplers Released . | . . . . . Fabnet Peak Effective % . | . . . . . Robots Rewired . | . . . . . Allies Hacked . | . . . . . Hacks Repelled . | . . . . . Allies | -11 -10 -10 -10 -9 -------- Run | Jun Mat Min Exi Min Total Allies 1 | . . 1 . . Largest Group 1 | . . 1 1 1 Highest-Rated Group 31 | . . 31 31 31 Highest-Rated Ally 31 | . . 31 31 31 Total Orders . | . . . . . Ally Attacks 16 | . . 10 . 6 Total Damage 215 | . . 151 . 64 Kills 4 | . . 2 . 2 Allies Corrupted . | . . . . . Allies Melted . | . . . . . Intel | -11 -10 -10 -10 -9 ------- Run | Jun Mat Min Exi Min Robot Analysis Total . | . . . . . Derelict Logs Recovered 2 | . . 1 . 1 Drone Launches . | . . . . . Drone Recoveries . | . . . . . Exploration | -11 -10 -10 -10 -9 ------------- Run | Jun Mat Min Exi Min Turns Passed 2770 | 75 520 1073 739 363 Spaces Moved 1448 | 41 296 601 374 136 Core 2 | 2 . . . . Treads 1446 | 39 296 601 374 136 Legs . | . . . . . Wheels . | . . . . . Hover . | . . . . . Flight . | . . . . . Fastest Speed 50 | 50 160 160 160 145 Average Speed 176 | 154 160 160 197 239 Slowest Speed 240 | 160 160 160 240 240 Overloaded Moves . | . . . . . Propulsion Burnouts . | . . . . . Robots Hopped . | . . . . . Cave-ins Triggered . | . . . . . Exploration Rate (%) 57 | 4 66 99 71 45 Regions Visited 4 Branch Regions 3 Pre-discovered Areas 2 | . . 1 1 . Known Exits Taken . | . . . . . Unknown Exits Taken 4 | 1 1 1 1 . Scrap Searched 2 | . . 1 . 1 Spaces Dug . | . . . . . Terrain Destroyed 29 | . . 13 . 16 Melee . | . . . . . Projectile . | . . . . . AOE 29 | . . 13 . 16 Terrain Rammed . | . . . . . Walls Destroyed . | . . . . . Machines Disabled . | . . . . . Actions | -11 -10 -10 -10 -9 --------- Run | Jun Mat Min Exi Min Total 1571 | 50 322 664 377 158 Wait 27 | . 11 15 . 1 Move 1444 | 40 295 600 373 136 Hop . | . . . . . Pick Up 18 | 4 2 9 2 1 Fast Attach 7 | 6 1 . . . Attach 4 | . . 1 . 3 Detach . | . . . . . Swap 9 | . 1 4 1 3 Drop 6 | . 1 4 1 . Fire 55 | . 11 30 . 14 Melee . | . . . . . Ram . | . . . . . Kick . | . . . . . Crush 1 | . . 1 . . Escape Stasis . | . . . . . Rewire . | . . . . . Trap . | . . . . . Miscellaneous . | . . . . . Route ------- -11/Junkyard -10/Materials (discovered 2 exits: *Min x2) -10/Mines (discovered 3 exits: [*Mat x2] / *Exi) -10/Exiles (discovered 2 exits: [*Min x2]) -9/Mines (discovered 1 exit: [*Mat]) History --------- Turn | Location | Event 41 | -11/Junkyard | Discovered new exit (range 15) 76 | -11/Junkyard | Entered Materials 211 | -10/Materials | Met 8R-AWN 259 | -10/Materials | Discovered new exit (range 15) 308 | -10/Materials | Build established: Mutant 556 | -10/Materials | Discovered new exit (range 16) 596 | -10/Materials | Entered Mines 597 | -10/Mines | Followed 8R-AWN into the Mines 658 | -10/Mines | Discovered new exit (range 12) 725 | -10/Mines | Found a damaged Exp. Sensor Array with a note attached 728 | -10/Mines | Found Prototype Device 798 | -10/Mines | Found a hidden stash of uninstalled traps 983 | -10/Mines | Excavation squad dispatched 983 | -10/Mines | A large section of the Mines collapsed 1425 | -10/Mines | Discovered new exit (range 5) 1468 | -10/Mines | Met a Derelict testing a Signal Generator 1518 | -10/Mines | Discovered new exit (range 13) 1525 | -10/Mines | Met a Derelict shopkeep closing up shop 1598 | -10/Mines | Learned location of Zion (-6) 1669 | -10/Mines | Entered Exiles 1669 | -10/Exiles | Accompanied by 1 ally 1690 | -10/Exiles | Discovered new exit (range 15) 1709 | -10/Exiles | Welcomed by 8R-AWN 1735 | -10/Exiles | Met EX-HEX 1815 | -10/Exiles | Met EX-DEC 2070 | -10/Exiles | Met EX-BIN 2099 | -10/Exiles | Aligned with FarCom system 2101 | -10/Exiles | Given EX-Vault access code 2157 | -10/Exiles | Opened EX-Vault 2171 | -10/Exiles | Found Gui. Plasma Cannon 2179 | -10/Exiles | Found AWS/Thermal 2231 | -10/Exiles | Warned to stay clear of 0b10 Research branches 2384 | -10/Exiles | Discovered new exit (range 12) 2408 | -10/Exiles | Stole two prototypes: Gui. Plasma Cannon, AWS/Thermal 2408 | -10/Exiles | Entered Mines 2408 | -9/Mines | Accompanied by 1 ally 2538 | -9/Mines | Discovered new exit (range 15) 2615 | -9/Mines | A weapon hastily lodged in a ceiling crevice suddenly fell to the ground 2671 | -9/Mines | Learned location of 1 exit from Materials 2718 | -9/Mines | Assembled infested the area 2723 | -9/Mines | Assisted by a Guerilla fighting off Assembled 2748 | -9/Mines | Core integrity fell below 50% 2757 | -9/Mines | Core integrity fell below 20% 2771 | -9/Mines | Destroyed by D-53 Grenadier with Mini Grenade Launcher Last Messages --------------- 02752_ D-53 Grenadier heat damages Cmb. Airjet, Launcher Guidance Computer, Cmb. Airjet. 02752_ D-53 Grenadier overheating. 02754_ The unstable cave ceiling collapses. 02754_ D-53 Grenadier overheating. 02754_ Heat Sink destroyed. 02755_ The unstable cave ceiling collapses. 02755_ D-53 Grenadier overheating. 02755_ Shock Absorption System melted. 02755_ Mni. Grenade Launcher melted. 02755_ D-53 Grenadier destroyed. 02756_ Lgt. Treads destroyed. 02757_ The unstable cave ceiling collapses. 02763_ U-05 Engineer lays Concrete. 02765_ The unstable cave ceiling collapses. 02765_ U-05 Engineer lays Concrete. 02767_ Lgt. Ion Engine destroyed. 02768_ U-05 Engineer lays Concrete. 02769_ The unstable cave ceiling collapses. 02769_ U-05 Engineer lays Concrete. Map ----- +----------------------------------------------------+ | ??????######???????????????????????????????? | | ?????## ##??????????????????????????????? | | ????## ##?????????????????????????????? | | ????# ##????????????????????????????? | | ????# #????????????????????????????? | | ????## ## #????????????????????????????? | | #????# #?# #????????????????????????????? | | ##???# #??# ##????????????????????????????? | | ##### #??? ##?????????????????????????????? | | #### #??????????????????????????????? | | #?????????? ????????????????? | | ###### ###### ????????# ??????????????? | | ?????# #????? ??????# ????????????? | | ?????# #???? #????## ! ????????????? | | #????# ???? k#??## % = #????????????? | | ##???###???? ###| #????????????? | | #??????????? u ##???????????? | | #????????????# % #???????????? | | ##?????###?????# % ????????????? | | #??????# ?????# % ?????????????? | | #####??# #?????# ??????????????? | | #??# #?????# % # #??????????????? | | ## #### ####???# %#??????????????? | | ## #???### d ##?????????????? | | ## #?????## ##????????????? | | ########## #??????# @ #????????????? | | #????????# #??????# ##????????????? | | #????????# #??????# r #?????????????? | | ?????????# #??????# #?????????????? | | ?????????# #??????## ##?????????????? | | ?????????# #???????## ##??????????????? | | ?????????# #????##### ###???????????????? | | ?????????# #???## #?????????????????? | | ?????????# #???# #?????????????????? | | ?????????# #???# #?????????????????? | | ?????????# #??## ##?????????????????? | | ?????????# #??# ##??????????????????? | | ?????????# #??# ##???????????????????? | | ?????????# #??# #????????????????????? | | ??????#### ##?## #????????????????????? | | ??????# #??# #????????????????????? | | ??????# #??## ##### #??????????????? | | ??????# #???### #??????????????? | | ??????# < ####??# #######??????????????? | | ??????# ## #?# #????????????????????? | | ??????# # ## ##???????????????????? | | ??????### #### ##??????????????????? | | ????????# #??# #####??????????????? | | ????????# ##### ##?????????????? | | ????????# ## #### #???????? | +----------------------------------------------------+ Best States ------------- Heat Dissipation 35 Energy Generation 10 Energy Capacity 325 Matter Stores 300 Matter Capacity 300 Sight Range 16 Terrain Scan Density 10 Evasion (%) 40 Recoil Reduction 2 Item Schematics ----------------- None Robot Schematics ------------------ None Fabricated ------------ Nothing Alien Tech Used ----------------- None Achievements -------------- None Challenges ------------ None Game ------ Seed RiotTiamatAutocannon Manual? 0 Play Time 00:16:33 Cumulative 202.0 hours Start 2023.05.15 @ 10:40:18 End 2023.05.15 @ 10:54:10 Sessions 1 Manual Loads 0 Difficulty Rogue Special Mode None Game No. 101 Rogue 101 Adventurer 0 Explorer 0 Win Type - Total 3 Types 3/0/0/0/0/0/0/0/0 Lore% 56 Gallery% 69 Achievement% 57 Wizard Run 0 Options --------- ASCII 0 Keyboard 1 Movement Vi Keybinds 0 Fullscreen 1 Font 12/Smallcaps Map View 83x54 Tactical HUD 1 Map Filters NONE Filters NONE Steam 1 RUN: 66fc1cd6-2cb3-4dc8-965b-79968e792462